fUST/lending_fUST_20240821
["ID","MTS","AMOUNT","RATE_DAILY","PERIOD"]
[335466402,1724242245589,-587.59,0.00034849,21]
[335466403,1724242245602,-500.0,0.00034849,21]
[335466404,1724242245612,-334.2,0.00034849,21]
[335466405,1724242245621,-500.0,0.00034849,21]
[335466406,1724242245631,-500.0,0.00034849,21]
[335466408,1724242245641,-500.0,0.00034849,21]
[335466410,1724242245650,-500.0,0.00034849,21]
[335466412,1724242245660,-500.0,0.00034849,21]
[335466414,1724242245670,-500.0,0.00034849,21]
[335466416,1724242245680,-1623.58,0.00034849,21]
[335466418,1724242245690,-500.0,0.00034849,21]
[335466419,1724242245700,-500.0,0.00034849,21]
[335466420,1724242245711,-500.0,0.00034849,21]
[335466422,1724242245721,-593.09,0.00034849,21]
[335466424,1724242245730,-1623.58,0.00034849,21]
[335466426,1724242245740,-347.2,0.00034849,21]
[335466428,1724242245750,-20125.28,0.00034849,21]
[335466430,1724242245761,-20125.28,0.00034849,21]
[335466432,1724242245770,-20125.28,0.00034849,21]
[335466434,1724242245780,-20125.28,0.00034849,21]
[335466436,1724242245791,-20125.28,0.00034849,21]
[335466438,1724242245801,-500.0,0.00034849,21]
[335466440,1724242245810,-20125.28,0.00034849,21]
[335466442,1724242245820,-500.0,0.00034849,21]
[335466444,1724242245830,-20125.28,0.00034849,21]
[335466446,1724242245839,-614.8175711,0.00034849,21]
[335466448,1724242245849,-20125.28,0.00034849,21]
[335466450,1724242245860,-20125.28,0.00034849,21]
[335466453,1724242245870,-20125.28,0.00034849,21]
[335466454,1724242245880,-20125.28,0.00034849,21]
[335466456,1724242245891,-20125.28,0.00034849,21]
[335466459,1724242245902,-20125.28,0.00034849,21]
[335466460,1724242245913,-500.0,0.00034849,21]
[335466461,1724242245922,-20125.28,0.00034849,21]
[335466462,1724242245932,-500.0,0.00034849,21]
[335466463,1724242245942,-8527.23470028,0.00034849,21]
[335466464,1724242246093,-128.52903382,0.00034849,21]
[335466465,1724242246105,-808.88059479,0.00034849,21]
[335466466,1724242246176,-560.55728956,0.00030032,2]
[335466467,1724242246284,-277.33003787,0.00022606,2]
[335466468,1724242336381,6575.68975965,0.00013971,2]
[335466471,1724242704858,-315.39865,0.00014247,2]
[335466498,1724243431852,-293.4187737,0.00014247,2]
[335466500,1724243431863,-300.0,0.00018,2]
[335466502,1724243431873,-300.0,0.00019,2]
[335466504,1724243431885,-500.0,0.00019069,2]
[335466505,1724243431895,-500.0,0.00019782,2]
[335466506,1724243431907,-500.0,0.00019793,2]
[335466507,1724243431918,-500.0,0.00019838,2]
[335466508,1724243431929,-2034.6727423,0.000199,2]
[335466509,1724243431939,-342.20916482,0.00019999,2]
[335466510,1724243431950,-5451.53496777,0.0002,2]
[335466511,1724243431960,-156.66298998,0.0002,2]
[335466512,1724243431971,-1260.81854444,0.0002,2]
[335466513,1724243431985,-38276.00043023,0.0002,2]
[335466519,1724243437927,-14918.62637421,0.0002,2]
[335466521,1724243437937,-1714.85925717,0.0002,2]
[335466523,1724243437947,-10055.12489044,0.0002,2]
[335466525,1724243437957,-4291.56646056,0.0002,2]
[335466527,1724243437966,-120106.70625485,0.00020377,2]
[335466529,1724243437976,-500.0,0.0002066,2]
[335466531,1724243437986,-4256.67382559,0.0002066,7]
[335466534,1724243437996,-315.39865,0.00020707,2]
[335466536,1724243438006,-167.070384,0.00020999,2]
[335466538,1724243438015,-258.55026975,0.00021,2]
[335466540,1724243438025,-5711.76414089,0.00021,2]
[335466542,1724243438034,-10148.06234563,0.00021,2]
[335466544,1724243438044,-233.00336597,0.00021,2]
[335466546,1724243438054,-500.0,0.00021061,2]
[335466548,1724243438063,-504.39808835,0.000212,2]
[335466550,1724243438074,-501.99527765,0.0002154,2]
[335466552,1724243438084,-500.0,0.00021581,2]
[335466554,1724243438094,-615.56643318,0.00021811,2]
[335466556,1724243438104,-3153.32502539,0.00021963,2]
[335466558,1724243438114,-171.416253,0.00021963,2]
[335466559,1724243438124,-500.0,0.00021973,2]
[335466561,1724243438134,-2034.67274227,0.00022043,2]
[335466563,1724243438146,-1314.02705259,0.000223,2]
[335466565,1724243438156,-226.13158555,0.00022606,2]
[335466567,1724243438167,-10513.28749774,0.00022606,2]
[335466569,1724243438177,-287.17173053,0.00022606,2]
[335466570,1724243438186,-500.0,0.00022711,2]
[335466572,1724243438196,-500.0,0.00022732,2]
[335466575,1724243438206,-500.0,0.00022924,2]
[335466576,1724243438216,-239.54490623,0.00023,2]
[335466578,1724243438226,-11402.02376786,0.00023,2]
[335466580,1724243438236,-500.0,0.00023363,2]
[335466582,1724243438246,-218.4,0.00023443,2]
[335466584,1724243438256,-500.0,0.00023499,2]
[335466587,1724243438266,-500.0,0.00023609,2]
[335466589,1724243438276,-500.0,0.00023631,2]
[335466591,1724243438286,-386.25865656,0.00023999,2]
[335466593,1724243438295,-165.23809944,0.00023999,2]
[335466595,1724243438305,-500.0,0.00023999,2]
[335466596,1724243438315,-500.0,0.00023999,2]
[335466598,1724243438325,-500.0,0.00023999,2]
[335466600,1724243438334,-500.0,0.00023999,2]
[335466601,1724243438344,-500.0,0.00023999,2]
[335466602,1724243438354,-500.0,0.00023999,2]
[335466603,1724243438363,-500.0,0.00023999,2]
[335466604,1724243438373,-500.0,0.00023999,2]
[335466605,1724243438383,-500.0,0.00023999,2]
[335466606,1724243438395,-205.43324224,0.00023999,2]
[335466607,1724243438404,-500.0,0.00023999,2]
[335466608,1724243438415,-108148.22501012,0.00024,60]
[335466609,1724243438424,-1009.60430589,0.00024,2]
[335466610,1724243438434,-318.98151789,0.00024,2]
[335466611,1724243438443,-2034.67274227,0.00024186,2]
[335466612,1724243438683,-500.0,0.00024282,2]
[335466613,1724243438693,-500.0,0.00024431,2]
[335466614,1724243438703,-218.4,0.00024488,2]
[335466615,1724243438714,-10343.5134042,0.00024498,2]
[335466616,1724243438724,-10157.57444704,0.00024613,2]
[335466617,1724243438733,-953.53947811,0.00024651,2]
[335466618,1724243438743,-380.0,0.00024658,2]
[335466619,1724243438752,-435.0,0.00024662,2]
[335466620,1724243438761,-198.74200664,0.00024688,2]
[335466621,1724243438770,-1111.18149522,0.00024688,2]
[335466622,1724243438780,-859.44710689,0.00024718,3]
[335466623,1724243438792,-1269.91300588,0.00024718,3]
[335466710,1724243442611,-899.36555997,0.000239,2]
[335466713,1724243442621,-10343.5134042,0.00024485,2]
[335466716,1724243442630,-160.8404123,0.0002469,2]
[335466718,1724243442639,-13743.35776303,0.00024718,3]
[335466721,1724243442650,-277.68803325,0.00024728,2]
[335466724,1724243442660,-882.99597685,0.00024803,2]
[335466727,1724243442669,-500.0,0.00024852,2]
[335466730,1724243442679,-500.0,0.0002486,2]
[335466733,1724243442689,-154.77557542,0.00025,2]
[335466736,1724243442701,-61656.61174749,0.00025,30]
[335466738,1724243442713,-1029.3364349,0.00025,2]
[335466740,1724243442725,-2913.79308419,0.00025,2]
[335466743,1724243442735,-500.0,0.00025078,2]
[335466746,1724243442744,-218.4,0.00025532,2]
[335466749,1724243442754,-500.0,0.00025581,2]
[335466752,1724243442763,-500.0,0.00025771,2]
[335466755,1724243442773,-52873.3038229,0.00026,15]
[335466757,1724243442783,-30000.0,0.00026,120]
[335466759,1724243442792,-308.87,0.00026,14]
[335466761,1724243442803,-356.1,0.00026,7]
[335466763,1724243442817,-899.36555997,0.00026213,2]
[335466765,1724243442826,-2034.67274227,0.00026329,2]
[335466768,1724243442836,-500.0,0.00026335,2]
[335466770,1724243442845,-218.4,0.00026576,2]
[335466771,1724243442855,-153.17,0.000266,31]
[335466774,1724243442864,-153.17,0.000266,31]
[335466776,1724243442874,-153.17,0.000266,31]
[335466778,1724243442886,-153.17,0.000266,31]
[335466780,1724243442897,-153.17,0.000266,31]
[335466782,1724243442907,-153.17,0.000266,31]
[335466784,1724243442918,-500.0,0.0002662,2]
[335466786,1724243442927,-500.0,0.00026848,2]
[335466788,1724243442937,-500.0,0.00026904,2]
[335466790,1724243442947,-500.0,0.00026907,2]
[335466792,1724243442957,-315.39865,0.00027167,2]
[335466794,1724243442966,-1208.90167948,0.0002739,2]
[335466796,1724243442977,-43829.33213647,0.000275,2]
[335466798,1724243442987,-500.0,0.00027503,2]
[335466800,1724243442996,-218.4,0.00027621,2]
[335466802,1724243443006,-29960.71059596,0.0002799,2]
[335466805,1724243443016,-499.3,0.00028116,2]
[335466807,1724243443025,-500.0,0.00028234,2]
[335466809,1724243443035,-2034.67274227,0.00028471,2]
[335466811,1724243443044,-573.14098692,0.00028518,2]
[335466813,1724243443054,-899.36555997,0.00028525,2]
[335466815,1724243443064,-153.17,0.000286,31]
[335466817,1724243443074,-153.17,0.000286,31]
[335466819,1724243443083,-153.17,0.000286,31]
[335466821,1724243443092,-153.17,0.000286,31]
[335466823,1724243443102,-153.17,0.000286,31]
[335466825,1724243443112,-153.17,0.000286,31]
[335466826,1724243443122,-153.17,0.000286,31]
[335466827,1724243443132,-153.17,0.000286,31]
[335466828,1724243443144,-153.17,0.000286,31]
[335466829,1724243443153,-153.17,0.000286,31]
[335466830,1724243443162,-153.17,0.000286,31]
[335466831,1724243443171,-153.17,0.000286,31]
[335466832,1724243443181,-218.4,0.00028665,2]
[335466833,1724243443190,-852.4833976,0.00029,2]
[335466834,1724243443199,-218.4,0.00029709,2]
[335466835,1724243443208,-308.87,0.000298,14]
[335466836,1724243443218,-356.1,0.000298,7]
[335466837,1724243443227,-4708.39902462,0.000299,2]
[335466838,1724243443237,-500.0,0.00029949,2]
[335466839,1724243443246,-178.72751622,0.0003,5]
[335466841,1724243443255,-500.0,0.00030348,7]
[335466843,1724243443265,-2034.67274227,0.00030614,2]
[335466845,1724243443274,-153.17,0.000307,31]
[335466847,1724243443283,-153.17,0.000307,31]
[335466849,1724243443293,-153.17,0.000307,31]
[335466851,1724243443302,-153.17,0.000307,31]
[335466853,1724243443311,-153.17,0.000307,31]
[335466855,1724243443321,-153.17,0.000307,31]
[335466857,1724243443330,-153.17,0.000307,31]
[335466859,1724243443339,-153.17,0.000307,31]
[335466861,1724243443348,-153.17,0.000307,31]
[335466863,1724243443358,-153.17,0.000307,31]
[335466865,1724243443367,-153.17,0.000307,31]
[335466867,1724243443377,-153.17,0.000307,31]
[335466869,1724243443386,-218.4,0.00030754,3]
[335466871,1724243443397,-500.0,0.00030792,7]
[335466873,1724243443407,-1000.0,0.00031,31]
[335466875,1724243443416,-500.0,0.00031091,7]
[335466877,1724243443426,-150.0,0.00031715,2]
[335466879,1724243443435,-521.0,0.00031715,2]
[335466881,1724243443445,-1415.0,0.00031715,2]
[335466883,1724243443454,-218.4,0.00031798,3]
[335466885,1724243443463,-752.97547408,0.00031883,7]
[335466887,1724243443473,-500.0,0.00031973,4]
[335466889,1724243443482,-31745.4357516,0.00031989,4]
[335466891,1724243443491,-11318.77589718,0.00031999,2]
[335467087,1724243472259,273.37336231,0.0002031,120]
[335467091,1724243999189,300.0,0.00014,2]
[335467092,1724244007522,300.0,0.00014,2]
[335467093,1724244038734,192.1557997,0.00014,2]
[335467094,1724244047340,369.99286623,0.00014,2]
[335467095,1724244090819,167.3344498,0.00014,2]
[335467096,1724244096077,2112.50283852,0.00014,2]
[335467097,1724244096705,245.37793569,0.00014,2]
[335467098,1724244106211,1512.84691763,0.00014,2]
[335467099,1724244110077,3619.9309493,0.00014,2]
[335467100,1724244112835,229.74296945,0.00014,2]
[335467101,1724244115239,4721.04600346,0.00014,2]
[335467102,1724244125360,170.48850773,0.00014,2]
[335467103,1724244140138,275.63625563,0.00014,2]
[335467104,1724244154265,16318.75386369,0.00014,2]
[335467105,1724244164879,405.4347584,0.00014,2]
[335467106,1724244179070,939.00420277,0.00014,2]
[335467107,1724244198113,2112.50283852,0.00014,2]
[335467108,1724244209235,4590.11439501,0.00014,2]
[335467109,1724244211104,1838.75388782,0.00014,2]
[335467110,1724244259221,16318.75386369,0.00014,2]
[335467111,1724244310629,977.23673703,0.00014,2]
[335467112,1724244358230,16318.75386369,0.00014,2]
[335467113,1724244473237,7942.7466532,0.00014,2]
[335467177,1724244638147,-300.0,0.00014146,2]
[335467179,1724244638157,-11652.95700033,0.00014147,2]
[335467181,1724244638167,-298.529722,0.00014247,2]
[335467183,1724244638176,-307.544186,0.00017404,2]
[335467185,1724244638186,-24900.0,0.00017538,2]
[335467187,1724244638196,-466.28243398,0.00018549,2]
[335467189,1724244638206,-700.0,0.00019006,2]
[335467191,1724244638216,-500.0,0.00019092,2]
[335467193,1724244638228,-1900.0,0.00019108,2]
[335467195,1724244638237,-165.742226,0.00019178,2]
[335467197,1724244638247,-166.406308,0.00019261,2]
[335467199,1724244638257,-700.0,0.00019279,2]
[335467201,1724244638266,-1300.0,0.00019308,2]
[335467203,1724244638276,-700.0,0.00019313,2]
[335467205,1724244638285,-700.0,0.00019361,2]
[335467207,1724244638295,-700.0,0.00019469,2]
[335467209,1724244638305,-465.0641217,0.00019477,2]
[335467211,1724244638314,-500.0,0.00019613,2]
[335467213,1724244638324,-1300.0,0.00019653,2]
[335467215,1724244638335,-1900.0,0.00019738,2]
[335467217,1724244638345,-500.0,0.00019747,2]
[335467219,1724244638355,-500.0,0.00019747,2]
[335467221,1724244638365,-1900.0,0.0001987,2]
[335467223,1724244638374,-700.0,0.00019913,2]
[335467225,1724244638384,-153.69977451,0.00019999,2]
[335467227,1724244638393,-156.66298998,0.0002,2]
[335467230,1724244638403,-154.79103211,0.0002,2]
[335467231,1724244638413,-172.08510632,0.0002,2]
[335467234,1724244638422,-5327.81921818,0.0002,2]
[335467236,1724244638434,-4496.82779986,0.0002021,2]
[335467238,1724244638452,-500.0,0.00020269,2]
[335467240,1724244638465,-3809.52635772,0.0002029,2]
[335467242,1724244638474,-802.04105905,0.00020295,2]
[335467244,1724244638484,-1000.0,0.00020295,2]
[335467246,1724244638493,-5714.28953658,0.000203,2]
[335467248,1724244638503,-10513.28749774,0.0002031,2]
[335467250,1724244638512,-1260.81854444,0.0002031,2]
[335467252,1724244638521,-126513.3262371,0.0002031,2]
[335467254,1724244638530,-287.17173053,0.0002031,2]
[335467256,1724244638539,-226.13158555,0.0002031,2]
[335467258,1724244638549,-700.0,0.00020354,2]
[335467260,1724244638559,-500.0,0.00020373,2]
[335467262,1724244638568,-1900.0,0.00020399,2]
[335467264,1724244638578,-465.00320608,0.00020451,2]
[335467266,1724244638588,-1300.0,0.00020544,2]
[335467268,1724244638598,-298.529722,0.00020707,2]
[335467270,1724244638607,-1000.0,0.00020921,2]
[335467272,1724244638616,-500.0,0.00020932,2]
[335467275,1724244638627,-700.0,0.00021025,2]
[335467277,1724244638638,-476.87093543,0.00021078,2]
[335467278,1724244638647,-700.0,0.00021124,2]
[335467281,1724244638658,-500.0,0.00021128,2]
[335467283,1724244638667,-1300.0,0.00021174,2]
[335467285,1724244638677,-446.08518865,0.00021193,2]
[335467287,1724244638689,-1300.0,0.00021279,2]
[335467289,1724244638699,-161.666965,0.000213,2]
[335467291,1724244638708,-1900.0,0.0002135,2]
[335467293,1724244638717,-1300.0,0.00021429,2]
[335467295,1724244638727,-150.112233,0.000215,3]
[335467297,1724244638736,-700.0,0.00021655,2]
[335467299,1724244638746,-500.0,0.00021692,2]
[335467301,1724244638756,-1904.76317886,0.00021744,3]
[335467303,1724244638765,-500.0,0.00021754,2]
[335467305,1724244638775,-233.35918642,0.00021754,2]
[335467307,1724244638784,-1900.0,0.00021805,2]
[335467309,1724244638794,-1500.0,0.00021819,2]
[335467311,1724244638803,-1300.0,0.00021823,2]
[335467313,1724244638813,-1900.0,0.00021826,2]
[335467315,1724244638822,-260.03734747,0.00022,2]
[335467317,1724244638831,-302.60665372,0.00022,2]
[335467319,1724244638841,-1300.0,0.00022035,2]
[335467321,1724244638850,-302.60665372,0.0002222,2]
[335467322,1724244638859,-700.0,0.00022276,2]
[335467324,1724244638869,-500.0,0.00022342,2]
[335467326,1724244638879,-302.60665372,0.0002244,2]
[335467328,1724244638888,-150.112233,0.000226,3]
[335467330,1724244638898,-302.60665372,0.0002266,2]
[335467332,1724244638908,-500.0,0.00022783,2]
[335467335,1724244638926,-1300.0,0.00022822,2]
[335467337,1724244638938,-500.0,0.00022842,2]
[335467339,1724244638948,-500.0,0.00022842,2]
[335467341,1724244638958,-1900.0,0.00022867,2]
[335467343,1724244638967,-302.60665372,0.0002288,2]
[335467345,1724244638977,-2000.0,0.00022924,2]
[335467348,1724244638988,-150.112233,0.00023,3]
[335467349,1724244638998,-201.50174106,0.00023,2]
[335467351,1724244639009,-1900.0,0.00023013,2]
[335467354,1724244639019,-1300.0,0.00023061,2]
[335467355,1724244639028,-1900.0,0.00023076,2]
[335467357,1724244639037,-453.90998057,0.000231,4]
[335467359,1724244639047,-1300.0,0.00023101,2]
[335467361,1724244639058,-700.0,0.00023209,2]
[335467363,1724244639067,-453.90998057,0.0002332,4]
[335467365,1724244639077,-556.0,0.00023443,2]
[335467367,1724244639089,-4496.82779985,0.00023461,2]
[335467369,1724244639099,-1904.76317886,0.00023482,3]
[335467371,1724244639108,-453.90998057,0.0002354,4]
[335467373,1724244639118,-500.0,0.00023687,2]
[335467375,1724244639127,-453.90998057,0.0002376,4]
[335467377,1724244639137,-500.0,0.00023808,2]
[335467379,1724244639147,-150.112233,0.000239,2]
[335467381,1724244639156,-603.15974969,0.0002398,4]
[335467383,1724244639167,-1900.0,0.00024156,2]
[335467386,1724244639176,-700.0,0.0002416,2]
[335467388,1724244639186,-2500.0,0.00024189,2]
[335467389,1724244639195,-10157.57444704,0.0002423,2]
[335467392,1724244639206,-700.0,0.0002426,2]
[335467394,1724244639216,-183.32510841,0.00024379,2]
[335467396,1724244639228,-309.52538861,0.00024385,2]
[335467398,1724244639238,-285.48087373,0.00024385,2]
[335467400,1724244639248,-154.78144652,0.00024385,2]
[335467402,1724244639258,-782.718708,0.00024385,2]
[335467404,1724244639268,-1111.18149522,0.00024395,2]
[335467406,1724244639278,-309.54884981,0.00024395,2]
[335467408,1724244639287,-154.77557542,0.00024455,2]
[335467410,1724244639299,-236.05442777,0.00024486,2]
[335467412,1724244639309,-551.7980808,0.00024486,2]
[335467414,1724244639319,-500.0,0.00024486,2]
[335467416,1724244639328,-500.0,0.00024486,2]
[335467418,1724244639337,-500.0,0.00024486,2]
[335467420,1724244639347,-500.0,0.00024486,2]
[335467422,1724244639358,-500.0,0.00024486,2]
[335467424,1724244639367,-500.0,0.00024486,2]
[335467426,1724244639377,-500.0,0.00024486,2]
[335467428,1724244639387,-500.0,0.00024486,2]
[335467430,1724244639396,-500.0,0.00024486,2]
[335467432,1724244639405,-186.27563664,0.00024486,2]
[335467434,1724244639415,-500.0,0.00024486,2]
[335467437,1724244639425,-500.0,0.00024486,2]
[335467438,1724244639437,-500.0,0.00024486,2]
[335467440,1724244639446,-500.0,0.00024486,2]
[335467442,1724244639456,-500.0,0.00024486,2]
[335467444,1724244639465,-500.0,0.00024486,2]
[335467446,1724244639474,-556.0,0.00024487,2]
[335467448,1724244639483,-150.112233,0.000245,3]
[335467449,1724244639493,-500.0,0.00024535,2]
[335467450,1724244639503,-1900.0,0.00024549,2]
[335467451,1724244639512,-10343.5134042,0.00024571,2]
[335467452,1724244639522,-500.0,0.00024633,2]
[335467453,1724244639533,-700.0,0.00024633,2]
[335467454,1724244639543,-1300.0,0.00024641,2]
[335467455,1724244639557,-953.53947811,0.00024657,2]
[335467456,1724244639567,-380.0,0.00024658,2]
[335467457,1724244639576,-200.0,0.00024658,2]
[335467458,1724244639586,-200.0,0.00024658,15]
[335467459,1724244639596,-435.0,0.00024658,2]
[335467460,1724244639605,-631.83554832,0.00024658,2]
[335467461,1724244639615,-160.8404123,0.00024688,2]
[335467462,1724244639625,-277.68803325,0.00024728,2]
[335467463,1724244639635,-500.0,0.0002479,2]
[335467464,1724244639644,-700.0,0.0002485,2]
[335467465,1724244639654,-1904.76317886,0.00024857,3]
[335467466,1724244639664,-500.30425983,0.00024871,2]
[335467467,1724244639674,-154.80649189,0.00025,2]
[335467468,1724244639683,-154.77557542,0.00025,2]
[335467469,1724244639696,-191.34123187,0.00025,2]
[335467470,1724244639706,-369.96805713,0.00025,30]
[335467471,1724244639716,-308.47910106,0.00025,2]
[335467472,1724244639726,-199.0,0.00025,2]
[335467473,1724244639736,-401.02347447,0.00025175,2]
[335467474,1724244639746,-201.28991957,0.00025175,2]
[335467475,1724244639756,-500.0,0.00025175,2]
[335467476,1724244639766,-504.54855206,0.00025175,2]
[335467478,1724244639776,-150.112233,0.000252,7]
[335467479,1724244639786,-500.0,0.00025222,2]
[335467480,1724244639795,-1900.0,0.00025313,2]
[335467481,1724244639805,-1300.0,0.00025319,2]
[335467482,1724244639815,-500.0,0.00025325,2]
[335467483,1724244639826,-1900.0,0.00025362,2]
[335467484,1724244639835,-1900.0,0.00025394,2]
[335467485,1724244639844,-500.0,0.00025425,2]
[335467486,1724244639854,-556.0,0.00025531,2]
[335467487,1724244639863,-3000.0,0.00025588,2]
[335467488,1724244639873,-1900.0,0.00025657,2]
[335467489,1724244639882,-700.0,0.00025699,2]
[335467490,1724244639892,-661.32016401,0.00025723,2]
[335467491,1724244639901,-700.0,0.00025888,2]
[335467492,1724244639912,-1904.76317886,0.0002589,3]
[335467493,1724244639923,-1900.0,0.000259,2]
[335467494,1724244639933,-1900.0,0.00025913,2]
[335467495,1724244639943,-150.112233,0.00026,6]
[335467496,1724244639954,-500.0,0.00026106,2]
[335467497,1724244639963,-307.544186,0.00026106,2]
[335467498,1724244639973,-500.0,0.00026239,2]
[335467499,1724244639983,-1300.0,0.00026367,2]
[335467501,1724244639992,-150.112233,0.000265,10]
[335467503,1724244640002,-1300.0,0.00026567,2]
[335467505,1724244640017,-556.0,0.00026576,2]
[335467507,1724244640027,-314.55,0.000266,31]
[335467508,1724244640037,-314.55,0.000266,31]
[335467509,1724244640046,-314.55,0.000266,31]
[335467510,1724244640056,-314.55,0.000266,31]
[335467511,1724244640066,-314.55,0.000266,31]
[335467512,1724244640076,-314.55,0.000266,31]
[335467513,1724244640086,-314.55,0.000266,31]
[335467514,1724244640096,-314.55,0.000266,31]
[335467516,1724244640106,-314.55,0.000266,31]
[335467518,1724244640116,-314.55,0.000266,31]
[335467520,1724244640127,-314.55,0.000266,31]
[335467521,1724244640137,-314.55,0.000266,31]
[335467522,1724244640149,-1900.0,0.00026654,2]
[335467523,1724244640160,-4496.82779985,0.00026713,2]
[335467524,1724244640170,-500.0,0.00026722,2]
[335467525,1724244640179,-1904.76317886,0.0002679,3]
[335467526,1724244640191,-426.03,0.000268,14]
[335467527,1724244640201,-1300.0,0.00026825,2]
[335467528,1724244640212,-1300.0,0.00026865,2]
[335467529,1724244640225,-835.74715033,0.00027,2]
[335467530,1724244640235,-3500.0,0.00027105,2]
[335467531,1724244640244,-298.529722,0.00027167,2]
[335467532,1724244640255,-500.0,0.00027307,2]
[335467533,1724244640267,-207.87011392,0.00027397,2]
[335467534,1724244640277,-933.95747527,0.00027397,2]
[335467535,1724244640288,-150.112233,0.000275,8]
[335467536,1724244640299,-500.0,0.00027564,2]
[335467537,1724244640309,-700.0,0.00027581,2]
[335467539,1724244640320,-500.0,0.00027604,2]
[335467540,1724244640330,-556.0,0.0002762,2]
[335467542,1724244640341,-150.112233,0.000278,10]
[335467544,1724244640351,-700.0,0.00027921,2]
[335467546,1724244640361,-1480.28757557,0.00027945,120]
[335467548,1724244640371,-1000.0,0.00028,28]
[335467549,1724244640382,-369.21673832,0.00028,30]
[335467550,1724244640392,-1900.0,0.00028037,2]
[335467551,1724244640402,-1900.0,0.00028137,2]
[335467552,1724244640411,-1300.0,0.00028166,2]
[335467553,1724244640421,-150.112236,0.000284,8]
[335467554,1724244640431,-1086.79345249,0.0002848,2]
[335467555,1724244640443,-688.29452569,0.00028493,2]
[335467556,1724244640452,-313.6271849,0.00028493,2]
[335467557,1724244640462,-426.03,0.000285,14]
[335467558,1724244640472,-3809.52635772,0.0002857,3]
[335467559,1724244640483,-1904.76317886,0.0002857,3]
[335467560,1724244640493,-314.55,0.000286,31]
[335467561,1724244640504,-314.55,0.000286,31]
[335467562,1724244640515,-314.55,0.000286,31]
[335467563,1724244640527,-314.55,0.000286,31]
[335467564,1724244640537,-314.55,0.000286,31]
[335467565,1724244640548,-314.55,0.000286,31]
[335467566,1724244640559,-314.55,0.000286,31]
[335467567,1724244640568,-314.55,0.000286,31]
[335467568,1724244640578,-314.55,0.000286,31]
[335467569,1724244640588,-314.55,0.000286,31]
[335467570,1724244640599,-314.55,0.000286,31]
[335467571,1724244640610,-314.55,0.000286,31]
[335467572,1724244640620,-314.55,0.000286,31]
[335467573,1724244640630,-314.55,0.000286,31]
[335467574,1724244640640,-314.55,0.000286,31]
[335467575,1724244640650,-314.55,0.000286,31]
[335467576,1724244640660,-314.55,0.000286,31]
[335467577,1724244640669,-314.55,0.000286,31]
[335467578,1724244640679,-314.55,0.000286,31]
[335467579,1724244640690,-314.55,0.000286,31]
[335467580,1724244640699,-314.55,0.000286,31]
[335467581,1724244640709,-314.55,0.000286,31]
[335467582,1724244640719,-314.55,0.000286,31]
[335467583,1724244640729,-314.55,0.000286,31]
[335467584,1724244640740,-556.0,0.00028665,2]
[335467585,1724244640750,-151.0,0.00028665,2]
[335467586,1724244640759,-4000.0,0.00028726,4]
[335467587,1724244640769,-1900.0,0.00028877,2]
[335467588,1724244640780,-1900.0,0.00028911,2]
[335467589,1724244640789,-1300.0,0.00028981,2]
[335467590,1724244640799,-150.112233,0.00029,10]
[335467591,1724244640809,-225.0,0.00029,2]